Cogmind - Beta 13 @@@ ROGUE MODE // 2024.05.18 @ 17:41:46 Player: Lunace Result: Destroyed by P-60 Hacker with Shock Rifle Performance ------------- Evolutions (3) 1500 Regions Visited (6) 1200 Robots Destroyed (48) 240 Value Destroyed (1483) 1483 Prototype IDs (1) 20 Alien Tech Used (0) 0 Bonus (143) 143 TOTAL SCORE: 4586 Bonus ------- Follower Combat Kills 143 Cogmind --------- Core Integrity 0/700 Matter 300/300 Energy 100/100 System Corruption 1% Temperature Cool (0) Movement Core (50) Location -7/Factory Parts ------- > --- POWER (1) -------- (None) > --- PROPULSION (4) --- (None) > --- UTILITY (5) ------ Improved Heat Sink Target Analyzer Transmission Jammer > --- WEAPON (3) ------- (None) > --- INVENTORY (5) ---- Improved Heat Sink Medium Storage Unit Improved Signal Interpreter Improved Terrain Scanner Peak State ------------ > --- POWER ------------ Nuclear Core > --- PROPULSION ------- Aluminum Leg Aluminum Leg Improved Aluminum Leg Improved Aluminum Leg > --- UTILITY ---------- Improved Heat Sink Improved Heat Sink Medium Storage Unit Compact Matter Pod Hardened Light Armor Plating > --- WEAPON ----------- Heavy Ion Cannon Heavy Ion Cannon Rocket Launcher > --- INVENTORY -------- Nuclear Core Aluminum Leg Aluminum Leg Improved Terrain Scanner Medium Armor Plating Heavy Ion Cannon Heavy Ion Cannon Katana [Rating: 33] Favorites ----------- Power Nuclear Core Engine Ion Engine Power Core Nuclear Core Propulsion Aluminum Leg Treads Light Treads Leg Aluminum Leg Wheel Wheel Utility Improved Heat Sink Device Improved Heat Sink Storage Medium Storage Unit Processor Target Analyzer Protection Hardened Light Armor Plating Weapon Heavy Ion Cannon Energy Gun Particle Gun Energy Cannon Heavy Ion Cannon Ballistic Gun Assault Rifle Ballistic Cannon Light Cannon Launcher Rocket Launcher Slashing Weapon Katana Build | -11 -10 -10 -10 -9 -8 -7 ------- Run | Yrd Mat Min Exi Min Mat Fac Slots Evolved 6 | . . . . . 4 2 Power . | . . . . . . . Propulsion 2 | . . . . . 2 . Utility 3 | . . . . . 1 2 Weapon 1 | . . . . . 1 . Parts Attached 71 | 7 4 . . . 22 38 Power 6 | 1 . . . . 1 4 Engine 2 | 1 . . . . . 1 Core 4 | . . . . . 1 3 Reactor . | . . . . . . . Propulsion 25 | 3 1 . . . 8 13 Treads 1 | 1 . . . . . . Leg 17 | 2 1 . . . 8 6 Wheel 7 | . . . . . . 7 Hover . | . . . . . . . Flight . | . . . . . . . Utility 21 | 1 1 . . . 7 12 Device 10 | . 1 . . . 3 6 Storage 4 | 1 . . . . 1 2 Processor 4 | . . . . . 2 2 Hackware . | . . . . . . . Protection 3 | . . . . . 1 2 Artifact . | . . . . . . . Weapon 19 | 2 2 . . . 6 9 Energy Gun 4 | 1 1 . . . 1 1 Energy Cannon 5 | . . . . . 3 2 Ballistic Gun 6 | 1 . . . . 1 4 Ballistic Cannon 1 | . 1 . . . . . Launcher 2 | . . . . . 1 1 Special Weapon . | . . . . . . . Impact Weapon . | . . . . . . . Slashing Weapon 1 | . . . . . . 1 Piercing Weapon . | . . . . . . . Special Melee Weapon . | . . . . . . . Unidentified Prototypes 1 | . . . . . 1 . Parts Lost 32 | . . . . . 1 31 Power 4 | . . . . . . 4 Propulsion 13 | . . . . . 1 12 Utility 6 | . . . . . . 6 Weapon 9 | . . . . . . 9 Highest Loss Streak 11 | . . . . . 1 11 To Critical Strikes . | . . . . . . . Average Slot Usage (%) 90 | . 92 100 100 100 97 80 Engine 4 | . 14 14 14 14 . . Core 4 | . . . . . 8 6 Leg 25 | . 28 28 28 28 36 18 Wheel 1 | . . . . . . 3 Device 12 | . 7 14 14 14 11 13 Storage 11 | . 14 14 14 14 9 11 Processor 2 | . . . . . 3 2 Protection 2 | . . . . . 2 4 Energy Gun 1 | . 13 . . . . . Energy Cannon 5 | . . . . . 6 8 Ballistic Gun 8 | . 14 14 14 14 9 3 Ballistic Cannon 4 | . . 14 14 14 3 . Launcher 2 | . . . . . 5 3 Naked Turns . | . . . . . . . Heaviest Build 45 | 14 16 16 16 16 43 45 Greatest Support 46 | 20 20 20 20 20 46 46 Greatest Overweight (x) 2 | . 1 . . . . 2 Average Overweight (x) . | . . . . . . . Largest Inventory Capacity 10 | 8 8 8 8 8 10 10 Average Capacity 9 | 6 8 8 8 8 9 9 Most Carried 10 | 3 5 7 8 7 10 10 Average Carried 6 | 1 4 6 7 7 7 6 Final Capacity 10 | 8 8 8 8 8 10 5 Final Carried 9 | 3 5 7 7 7 9 4 Class Distribution -------------------- 40% | Mutant 17% | Scavenger-Tank 12% | Tank 9% | Skirmisher 8% | Scavenger-Mutant 8% | Scavenger-Gunner Dominant Class ---------------- Mutant | -10/Materials Mutant | -10/Mines Mutant | -10/Exiles Mutant | -9/Mines Skirmisher | -8/Materials Scavenger-Tank | -7/Factory Resources | -11 -10 -10 -10 -9 -8 -7 ----------- Run | Yrd Mat Min Exi Min Mat Fac Matter Collected 1448 | 217 75 39 . 37 583 497 Remotely 110 | . . . . . . 110 Salvage Created 1615 | . 64 . . 40 388 1123 Parts 81 | . 12 . . 4 19 46 Haulers Intercepted 2 | . . . . . . 2 Recyclers Shooed 2 | . . . . . 1 1 Parts Field Recycled . | . . . . . . . Retrieved Matter . | . . . . . . . Parts Self-Destructed . | . . . . . . . Prevented . | . . . . . . . Kills | -11 -10 -10 -10 -9 -8 -7 ------- Run | Yrd Mat Min Exi Min Mat Fac Combat Hostiles Destroyed 36 | . 2 . . 3 11 20 Melee 3 | . . . . . . 3 Guns 12 | . 2 . . 2 4 4 Cannons 9 | . . . . 1 1 7 AOE 11 | . . . . . 6 5 Classes Destroyed 10 | . 2 . . . 5 3 Worker 3 | . . . . . 2 1 Hauler 2 | . . . . . . 2 Recycler 5 | . . . . . 2 3 Watcher 2 | . 1 . . . . 1 Swarmer 13 | . 2 . . 3 3 5 Grunt 15 | . . . . . 6 9 Duelist 1 | . . . . . 1 . Sentry 3 | . . . . . 1 2 Hunter 3 | . . . . . . 3 Programmer 1 | . . . . . . 1 Best Kill Streak 7 | . 3 . . 3 4 7 Combat Bots Only 5 | . 2 . . 3 3 5 Max Kills in Single Turn 2 | . 1 . . 2 2 2 Gunslinging . | . . . . . . . Exploded 2 | . . . . . 1 2 Melee 1 | . . . . . . 1 Uniques/NPCs Destroyed . | . . . . . . . Combat | -11 -10 -10 -10 -9 -8 -7 -------- Run | Yrd Mat Min Exi Min Mat Fac Hostile Shots Fired 453 | . 8 . . 8 49 388 Missed 142 | . 2 . . . 15 125 Damage Taken 4117 | . 46 . . 56 490 3525 Core 792 | . . . . 7 81 704 Absorbed by Shields . | . . . . . . . Regen/Repaired (Parts) 59 | . . . . . . 59 Core Remaining (%) 94 | 100 . . . 97 85 . Volleys Fired 106 | . 7 . . 6 34 59 Largest 3 | . 2 . . 2 3 3 Hottest 158 | . 70 . . 55 130 158 Shots Fired 203 | . 14 . . 12 72 105 Gun 98 | . 14 . . 6 25 53 Cannon 83 | . . . . 6 31 46 Launcher 22 | . . . . . 16 6 Special . | . . . . . . . Kinetic 106 | . 7 . . 12 34 53 Thermal 75 | . 7 . . . 22 46 Explosive 22 | . . . . . 16 6 Electromagnetic . | . . . . . . . Robot Hit Streak 10 | . 4 . . 3 7 10 Robot Miss Streak 4 | . 3 . . 3 4 4 Penetration Max 1 | . . . . . . 1 Secondary Targets . | . . . . . . . Shots Hit Robots 133 | . 6 . . 6 44 77 Core Hits 84 | . 3 . . 4 26 51 Critical Kills 1 | . . . . . . 1 Critical Parts Destroyed 3 | . . . . . . 3 Critical Strikes 4 | . . . . . . 4 Meltdown 1 | . . . . . . 1 Destroy 3 | . . . . . . 3 Melee Attacks 15 | . . . . . . 15 Impact . | . . . . . . . Slashing 15 | . . . . . . 15 Piercing . | . . . . . . . Sneak Attacks 1 | . . . . . . 1 Combat Hostiles . | . . . . . . . Follow-up Attacks . | . . . . . . . Damage Inflicted 4501 | . 81 . . 119 1522 2779 Guns 1236 | . 81 . . 67 309 779 Cannons 1239 | . . . . 52 428 759 Explosions 1604 | . . . . . 785 819 Melee 422 | . . . . . . 422 Ramming . | . . . . . . . Kinetic 1382 | . 42 . . 119 442 779 Thermal 1093 | . 39 . . . 295 759 Explosive 1604 | . . . . . 785 819 Electromagnetic . | . . . . . . . Impact . | . . . . . . . Slashing 422 | . . . . . . 422 Piercing . | . . . . . . . Highest Corruption 1 | . . . . . . 1 Average Corruption 1 | . . . . . . 1 Corruption Purged . | . . . . . . . Corruption Blocked . | . . . . . . . Effects 1 | . . . . . . 1 Heat Flow Errors 1 | . . . . . . 1 Overload Shots . | . . . . . . . Overflow Damage 27 | . . . . . . 27 Projectiles 11 | . . . . . . 11 Explosions . | . . . . . . . Melee 16 | . . . . . . 16 Knockbacks 4 | . . . . 1 3 . Impact . | . . . . . . . Kinetic 4 | . . . . 1 3 . Secondary . | . . . . . . . Self-Inflicted Damage . | . . . . . . . Shots . | . . . . . . . Rammed . | . . . . . . . Targets Rammed . | . . . . . . . Kicked . | . . . . . . . Crushed . | . . . . . . . Highest Temperature 316 | . . . . . 186 316 Average Temperature 122 | . . . . . 80 136 Received Heat Transfer 873 | . 6 . . . 207 660 Effects 3 | . . . . . . 3 Energy Bleed 3 | . . . . . . 3 Siege Activations . | . . . . . . . Robots Corrupted . | . . . . . . . Combat Hostiles . | . . . . . . . Parts Fried . | . . . . . . . Impact Corruptions . | . . . . . . . Robots Melted 1 | . . . . . . 1 Combat Hostiles 1 | . . . . . . 1 Parts Melted 2 | . . . . . . 2 Heat Transferred 1554 | . 111 . . . 407 1036 Parts Sabotaged . | . . . . . . . Parts Stolen . | . . . . . . . Parts Stripped . | . . . . . . . Power Chain Reactions . | . . . . . . . Alert | -11 -10 -10 -10 -9 -8 -7 ------- Run | Yrd Mat Min Exi Min Mat Fac Peak Influence 392 | . 87 73 . 100 351 392 Initial 159 | . . 33 . . 39 159 Average 158 | . 30 39 . 55 108 253 Maximum Alert Level 1 | . . . . . 1 1 Low Security (%) 66 | 100 100 100 . 100 86 36 Level 1 33 | . . . . . 13 63 Level 2 . | . . . . . . . Level 3 . | . . . . . . . Level 4 . | . . . . . . . Level 5 . | . . . . . . . High Security . | . . . . . . . Max Security . | . . . . . . . Squads Dispatched 16 | . 2 . . . 1 13 Investigation 2 | . . . . . 1 1 Extermination 1 | . . . . . . 1 Reinforcement 7 | . 2 . . . . 5 Assault . | . . . . . . . Garrison 6 | . . . . . . 6 Intercept . | . . . . . . . Searches Triggered . | . . . . . . . Construction Impeded 1 | . . . . . . 1 Haulers Reinforced 2 | . . . . . . 2 Active Scanning Responses . | . . . . . . . Cargo Convoy Interrupts 1 | . . . . . . 1 Stealth | -11 -10 -10 -10 -9 -8 -7 --------- Run | Yrd Mat Min Exi Min Mat Fac Distress Signals 2 | . . . . . . 2 Communications Jammed 20 | . . . . . . 20 Distress Signals 20 | . . . . . . 20 Times Spotted 75 | . 9 2 . 4 14 46 Peak Tracking Total 11 | . 4 2 . 4 4 11 Tactical Retreats 6 | . . . . . . 6 Traps | -11 -10 -10 -10 -9 -8 -7 ------- Run | Yrd Mat Min Exi Min Mat Fac Traps Triggered 3 | . 1 . . . 1 1 Indirectly . | . . . . . . . Trap Hack Attempts . | . . . . . . . Triggered . | . . . . . . . Disarmed . | . . . . . . . Reprogrammed . | . . . . . . . Reused . | . . . . . . . Traps Extracted . | . . . . . . . Installed . | . . . . . . . Triggered . | . . . . . . . Machines | -11 -10 -10 -10 -9 -8 -7 ---------- Run | Yrd Mat Min Exi Min Mat Fac Machines Disabled 6 | . . . . . 4 2 Max in Single Turn 1 | . . . . . 1 1 Machines Repaired . | . . . . . . . Machines Dismantled . | . . . . . . . Machines Sabotaged . | . . . . . . . Overloaded Fab Kills . | . . . . . . . Hacking | -11 -10 -10 -10 -9 -8 -7 --------- Run | Yrd Mat Min Exi Min Mat Fac Machines Accessed 14 | . 3 . 1 . 3 7 Terminals 6 | . 2 . . . 3 1 Fabricators . | . . . . . . . Repair Stations 2 | . . . . . . 2 Recycling Units 3 | . 1 . . . . 2 Scanalyzers 1 | . . . . . . 1 Garrison Access 1 | . . . . . . 1 Total Hacks 36 | . 9 . 1 . 7 19 Successful 14 | . 3 . 1 . 2 8 Failed 22 | . 6 . . . 5 11 Catastrophic 3 | . 1 . . . . 2 Database Lockouts . | . . . . . . . Manual 25 | . 8 . . . 7 10 Terminals 15 | . 6 . . . 7 2 Fabricators . | . . . . . . . Repair Stations 5 | . . . . . . 5 Recycling Units 7 | . 3 . . . . 4 Scanalyzers 4 | . . . . . . 4 Garrison Access 4 | . . . . . . 4 Terminal Hacks 1 | . . . 1 . . . Record 1 | . . . 1 . . . Fabricator Hacks . | . . . . . . . Repair Station Hacks 2 | . . . . . . 2 Scan Component 1 | . . . . . . 1 Repair 1 | . . . . . . 1 Recycling Unit Hacks 1 | . 1 . . . . . Report Inventory 1 | . 1 . . . . . Scanalyzer 3 | . . . . . . 3 Insert Component 2 | . . . . . . 2 Analyze 1 | . . . . . . 1 Garrison Access Hacks . | . . . . . . . Unauthorized Hacks 7 | . 2 . . . 2 3 Terminals 4 | . 1 . . . 2 1 Botnet 4 | . 1 . . . 2 1 Fabricators . | . . . . . . . Repair Stations . | . . . . . . . Recycling Units 2 | . 1 . . . . 1 Recyclers 2 | . 1 . . . . 1 Scanalyzers . | . . . . . . . Garrison Access 1 | . . . . . . 1 Watchers 1 | . . . . . . 1 Data Cores Recovered . | . . . . . . . Used . | . . . . . . . Hacking Detections 13 | . 3 . . . 3 7 Full Trace Events 1 | . . . . . . 1 Feedback Events . | . . . . . . . Feedback Blocked . | . . . . . . . Robot Schematics Acquired . | . . . . . . . Robots Built . | . . . . . . . Authchips . | . . . . . . . Time . | . . . . . . . Total Robot Build Rating . | . . . . . . . Part Schematics Acquired 1 | . . . . . . 1 Parts Built . | . . . . . . . Authchips . | . . . . . . . Time . | . . . . . . . Total Part Build Rating . | . . . . . . . Parts Repaired 1 | . . . . . . 1 Time 32 | . . . . . . 32 Parts Recycled . | . . . . . . . Recycled Matter . | . . . . . . . Retrieved Matter . | . . . . . . . Retrieved Components . | . . . . . . . Parts Scanalyzed 1 | . . . . . . 1 Part Schematics Acquired 1 | . . . . . . 1 Parts Damaged . | . . . . . . . Bothacking | -11 -10 -10 -10 -9 -8 -7 ------------ Run | Yrd Mat Min Exi Min Mat Fac Used RIF Installer . | . . . . . . . Robots Hacked . | . . . . . . . Non-combat . | . . . . . . . Combat . | . . . . . . . Robot Hacks Applied . | . . . . . . . Relay Couplers Released . | . . . . . . . Fabnet Peak Effective % . | . . . . . . . Robots Rewired . | . . . . . . . Allies Hacked . | . . . . . . . Hacks Repelled . | . . . . . . . Allies | -11 -10 -10 -10 -9 -8 -7 -------- Run | Yrd Mat Min Exi Min Mat Fac Total Allies 4 | . . 4 . . . . Largest Group 4 | . . 4 3 2 2 . Highest-Rated Group 71 | . . 71 63 32 32 . Highest-Rated Ally 31 | . . 31 31 16 16 . Total Orders . | . . . . . . . Ally Attacks 33 | . . 13 . 4 16 . Total Damage 400 | . . 193 . 49 158 . Kills 5 | . . 2 . 1 2 . Allies Corrupted . | . . . . . . . Allies Melted . | . . . . . . . Intel | -11 -10 -10 -10 -9 -8 -7 ------- Run | Yrd Mat Min Exi Min Mat Fac Robot Analysis Total . | . . . . . . . Derelict Logs Recovered 2 | . . 2 . . . . Drone Launches . | . . . . . . . Drone Recoveries . | . . . . . . . Exploration | -11 -10 -10 -10 -9 -8 -7 ------------- Run | Yrd Mat Min Exi Min Mat Fac Turns Passed 3004 | 65 162 372 258 126 705 1316 Spaces Moved 2076 | 42 105 293 211 76 450 899 Core 109 | 4 . . . . . 105 Treads 5 | 5 . . . . . . Legs 1653 | 33 105 293 211 76 450 485 Wheels 309 | . . . . . . 309 Hover . | . . . . . . . Flight . | . . . . . . . Fastest Speed 50 | 50 120 120 120 120 120 50 Average Speed 114 | 118 120 120 120 120 120 106 Slowest Speed 260 | 160 190 120 120 120 120 260 Overloaded Moves . | . . . . . . . Propulsion Burnouts . | . . . . . . . Robots Hopped . | . . . . . . . Cave-ins Triggered . | . . . . . . . Exploration Rate (%) 35 | 4 27 79 61 21 40 18 Regions Visited 6 Branch Regions 3 Pre-discovered Areas 2 | . . 1 1 . . . Known Exits Taken . | . . . . . . . Unknown Exits Taken 6 | 1 1 1 1 1 1 . Scrap Searched . | . . . . . . . Spaces Dug . | . . . . . . . Terrain Destroyed 109 | . . . . . 76 33 Melee . | . . . . . . . Projectile 11 | . . . . . 7 4 AOE 98 | . . . . . 69 29 Terrain Rammed . | . . . . . . . Walls Destroyed . | . . . . . . . Machines Disabled . | . . . . . . . Actions | -11 -10 -10 -10 -9 -8 -7 --------- Run | Yrd Mat Min Exi Min Mat Fac Total 2495 | 54 126 313 216 99 555 1132 Wait 173 | 3 4 19 4 18 24 101 Move 2070 | 41 104 292 210 75 449 899 Hop . | . . . . . . . Pick Up 25 | 2 4 2 1 . 10 6 Fast Attach 40 | 7 4 . . . 9 20 Attach 21 | . . . . . 7 14 Detach 5 | 1 . . . . 1 3 Swap 10 | . . . . . 6 4 Drop 30 | . 3 . 1 . 15 11 Fire 106 | . 7 . . 6 34 59 Melee 15 | . . . . . . 15 Ram . | . . . . . . . Kick . | . . . . . . . Crush . | . . . . . . . Escape Stasis . | . . . . . . . Rewire . | . . . . . . . Trap . | . . . . . . . Miscellaneous . | . . . . . . . Route ------- -11/Scrapyard -10/Materials -10/Mines -10/Exiles -9/Mines -8/Materials -7/Factory (discovered 1 exit: Sto) History --------- Turn | Location | Event 11 | -11/Scrapyard | Discovered new exit (range 16) 66 | -11/Scrapyard | Entered Materials 222 | -10/Materials | Discovered new exit (range 6) 228 | -10/Materials | Entered Mines 305 | -10/Mines | Learned location of Zion (-6) 314 | -10/Mines | Build established: Mutant 418 | -10/Mines | Received a Mining Laser from a helpful Derelict 458 | -10/Mines | Assisted by bots powering up and referring to "LRC-V3" 587 | -10/Mines | Deemed a non-threat by the Exiles lab entrance 587 | -10/Mines | Discovered new exit (range 5) 600 | -10/Mines | Entered Exiles 600 | -10/Exiles | Accompanied by 3 allies 629 | -10/Exiles | Met 8R-AWN 651 | -10/Exiles | Met EX-HEX 704 | -10/Exiles | Met EX-DEC 743 | -10/Exiles | Met EX-BIN 838 | -10/Exiles | Discovered new exit (range 14) 858 | -10/Exiles | Entered Mines 858 | -9/Mines | Accompanied by 2 allies 873 | -9/Mines | Discovered new exit (range 9) 984 | -9/Mines | Entered Materials 984 | -8/Materials | Accompanied by 2 allies 984 | -8/Materials | Evolved 4 slots: Propulsion x2, Utility x1, Weapon x1 1684 | -8/Materials | Discovered new exit (range 4) 1689 | -8/Materials | Entered Factory 1689 | -7/Factory | Evolved 2 slots: Utility x2 1690 | -7/Factory | Identified exit to Storage 2048 | -7/Factory | Garrison activated, responded to threat 2081 | -7/Factory | Build established: Scavenger-Tank 2217 | -7/Factory | Repaired Rocket Launcher 2363 | -7/Factory | Garrison activated, responded to threat 2420 | -7/Factory | Lost 10 parts (1p4n3u2w) 2507 | -7/Factory | Lost 6 parts (1n2u3w) 2644 | -7/Factory | Core integrity fell below 50% 2674 | -7/Factory | Lost 4 parts (3n1w) 2938 | -7/Factory | Core integrity fell below 20% 2971 | -7/Factory | Lost 11 parts (3p4n1u3w) 3002 | -7/Factory | Cargo convoy interrupted 3005 | -7/Factory | Destroyed by P-60 Hacker with Shock Rifle Last Messages --------------- 02909_ W-25 Informer distress signal jammed. 02909_ Mic. Nuclear Core destroyed. 02910_ W-25 Informer distress signal jammed. 02924_ Acquired Aluminum Leg. 02928_ Acquired Lgt. Ion Engine. 02931_ Penetrated by Slug. 02931_ Aluminum Leg destroyed. 02937_ Penetrated by Slug. 02937_ Lgt. Ion Engine destroyed. 02940_ Penetrated by Slug. 02940_ Imp. Heat Sink destroyed. 02980_ Acquired 25 matter. 03001_ C-30 ARC bursts open, deploying its payload. 03001_ P-60 Hacker unfolds itself. 03001_ H-55 Commando unfolds itself. 03001_ I-36 Angel unfolds itself. 03002_ ALERT: Cargo convoy interrupted, initiating access lockdown. Map ----- +----------------------------------------------------+ | ????# # #????# ???????????????? | | ????# """" """" # ###### """ """???????????????? | | ????# """" """" # """ """???????????r???? | | ????# """" """" # """ ""????????????????? | | ????# """" """" + ???????????????? | | ????# """" """" # ""????????????????? | | ????# """" """" # "?????????????????? | | ????# ##### ## "?????????????????? | | ????# #???? ## """ ?????????????????? | | ????# #???? ## "R ""????????????????? | | ????# ! #???? ## """ """ ??????????????? | | ########/#############+## "" """???????????????? | | == + # w???????????????? | | ############## "" # ?????????????????? | | ?????????????# Y" # #??????????????????? | | ############## """" "" # ##?????????????????? | | + # """" # T#?????????????????? | | # """ # """" # #?????????????????? | | # """"" #! """" / #??????????????????? | | # """"" # # #??????????????????? | | # # """" # #??????????????????? | | # ] #= """" ## ##??????????????????? | | # # """" ## #???????????????????? | | # # """" ##C #???????????????????? | | # "" "" # hp%## #???????????????????? | | # ""R"" #! i p@ #???????????????????? | | # """" # #k ;#???????????????????? | | #! ############ ##???????????????????? | | #######+##########??# w #????????????????????? | | ???## #??# #######????????????????????? | | ??### #??# #??????????????????????????? | | ??# # #??# #??????????????????????????? | | ##### #??# #??????????????????????????? | | #??#%#??????????????????????????? | | #### #??# #??????????????????????????? | | # #### ###????????????????????????? | | "" + #????????????????????????? | | "" # ####### #????????????????????????? | | "" # #?????# #????????????????????????? | | "" # #?????# #????????????????????????? | | # #?????# #????????????????????????? | | #### #?########+### #????????????????????????? | | #??# # # #????????????????????????? | | ####+# # #????????????????????????? | | # ] # #????????????????????????? | | # # #????????????????????????? | | # # #????????????????????????? | | ############## #????????????????????????? | | """" #????????????# #????????????????????????? | | """" #????????????# #????????????????????????? | +----------------------------------------------------+ Best States ------------- Heat Dissipation 62 Energy Generation 15 Energy Capacity 250 Matter Stores 450 Matter Capacity 450 Sight Range 18 Terrain Scan Range 16 Terrain Scan Density 10 Jamming Range 12 Armor Coverage 375 Evasion (%) 55 Target Analysis 5 Armor Integrity Analysis 30 Recoil Reduction 1 Item Schematics ----------------- Imp. Signal Interpreter | -7/Factory | Scanalyzed Robot Schematics ------------------ None Fabricated ------------ Nothing Alien Tech Used ----------------- None Achievements -------------- None Challenges ------------ None Game ------ Seed GrenadeDataFlightbrick Manual? 0 Play Time 00:28:59 Cumulative 190.8 hours Start 2024.05.18 @ 17:12:51 End 2024.05.18 @ 17:41:46 Sessions 1 Manual Loads 0 Difficulty Rogue Special Mode None Game No. 184 Rogue 179 Adventurer 5 Explorer 0 Win Type - Total 3 Types 2/0/0/1/0/0/0/0/0 Lore% 54 Gallery% 75 Achievement% 56 Wizard Run 0 Options --------- Layout 2 ASCII 0 Keyboard 0 Movement Mouse Keybinds 0 Fullscreen 1 Font 24/Terminus Map View 50x44 Zoom Use 0% Tactical HUD 1 Map Filters NONE Filters NONE Steam 1 RUN: 261b76f2-488e-4422-b7a0-6b6a82acae8e